[Event "44th Chess Olympiad Women 2022"]
[Site "Chennai"]
[Date "2022.07.30"]
[Round "2.15"]
[White "Avila Fraire, Ameyalli"]
[Black "Radeva, Viktoria"]
[Result "1/2-1/2"]
[WhiteElo "1907"]
[BlackElo "2289"]
[Annotator "TA"]
[PlyCount "115"]
[EventDate "2022.??.??"]
[TimeControl "60"]

{[%evp 15,115,-21,-20,-99,-89,-91,-88,-83,-96,-84,-75,-78,-71,-71,-71,-72,-67,
-69,-47,-58,-44,-47,12,3,20,20,17,-12,-20,-12,28,27,27,20,25,19,29,31,21,42,44,
-31,-28,-45,-52,-46,-50,-67,-43,-46,-35,-70,-71,-85,-77,-87,-92,-316,-305,-290,
-212,-308,-310,-306,-314,-300,-56,-56,7,7,70,70,124,35,33,31,42,13,14,12,158,0,
103,73,234,239,235,89,87,87,84,76,106,76,76,0,88,0,83,0,84,0]} 1. e4 {[%emt 0:
00:00]} c5 {[%emt 0:00:05]} 2. Nf3 {[%emt 0:00:08]} e6 {[%emt 0:00:05]} 3. c3 {
[%emt 0:01:36]} d5 {[%emt 0:00:44]} 4. e5 {[%emt 0:00:19]} Nc6 {[%emt 0:01:25]}
5. d4 {[%emt 0:00:18]} Bd7 {[%emt 0:04:22]} 6. Bd3 {[%emt 0:02:50]} cxd4 {
[%emt 0:05:37]} 7. cxd4 {[%emt 0:02:32] 7.0-0 might become the main line.} Qb6
{[%emt 0:05:19]} 8. Bc2 {[%emt 0:11:54]} Nb4 $1 {[%emt 0:00:46]} 9. Ba4 {
[%emt 0:02:56] C02: French: Advance Variation.} (9. O-O $11) 9... Qa6 $17 {
[%emt 0:17:11]} 10. Bc2 {[%emt 0:22:58]} Rc8 {[%emt 0:14:34]} 11. Nc3 {[%emt 0:
00:00] Black is better.} Bb5 {[%emt 0:04:56]} 12. a3 {[%emt 0:11:42][%cal
Ya3b4]} Nxc2+ {[%emt 0:01:25]} 13. Qxc2 {[%emt 0:00:09] [#]} Bd3 $146 {[%emt 0:
00:00]} ({Predecessor:} 13... Ne7 14. Ng1 Nf5 15. Qd1 Bf1 16. Nge2 Bxg2 17. Rg1
Nh4 18. Rxg2 Nxg2+ 19. Kf1 Nh4 20. Qd2 Nf5 21. Qf4 Ne7 22. Kg1 h6 23. Kh1 {
½-½ (23) Mutlu,E (1271)-Kirtadze,A (1391) Riga 2018}) 14. Qa4+ {[%emt 0:00:
00]} Qxa4 {[%emt 0:00:23]} 15. Nxa4 {[%emt 0:00:05]} Rc2 {[%emt 0:01:59]} 16.
Be3 {[%emt 0:03:45]} Bb5 {[%emt 0:12:55]} 17. b3 {[%emt 0:06:52][%cal Yb2b3,
Yb3b4,Yb4b5]} (17. Nc3 Bc4 18. Rb1 Ne7 $17) 17... Nh6 {[%emt 0:03:01]} 18. Kd1
{[%emt 0:04:13]} Rc6 {[%emt 0:01:04]} (18... Bd3 $2 19. Ne1 $18) ({Black
should play} 18... Rc7 $15) 19. Nc5 $11 {[%emt 0:02:57]} Ng4 {[%emt 0:00:00]} (
19... Bxc5 $5 20. dxc5 Nf5 $11) 20. a4 {[%emt 0:04:21]} Ba6 {[%emt 0:00:00]}
21. b4 {[%emt 0:01:22]} Bc4 {[%emt 0:01:54]} 22. Nd2 {[%emt 0:04:03]} b6 {
[%emt 0:04:05]} 23. b5 {[%emt 0:00:37]} Rc8 {[%emt 0:00:23]} 24. Nxc4 {[%emt 0:
00:00]} dxc4 {[%emt 0:02:04]} (24... Bxc5 25. dxc5 dxc4 26. c6 $16) 25. Ne4 {
[%emt 0:00:25]} f5 {[%emt 0:00:36]} 26. exf6 {[%emt 0:00:15]} gxf6 {[%emt 0:00:
00][%cal Yg7f6,Yf6f5,Yf5f4]} 27. Kc2 {[%emt 0:02:06]} f5 {[%emt 0:00:00]} 28.
Nc3 {[%emt 0:01:18]} (28. Ng5 $14) 28... Bb4 {[%emt 0:00:51]} 29. Rab1 {
[%emt 0:00:34]} Bxc3 {[%emt 0:00:37]} 30. Kxc3 {[%emt 0:00:07][%cal Ya4a5]} Nf6
$36 {[%emt 0:00:09] White is under pressure.} 31. Rhe1 {[%emt 0:00:00][%cal
Ya4a5]} f4 {[%emt 0:02:16]} 32. Bc1 {[%emt 0:00:28]} Kd7 {[%emt 0:00:00]} 33.
g3 {[%emt 0:00:31]} Nd5+ {[%emt 0:00:04]} 34. Kc2 {[%emt 0:00:13]} fxg3 {
[%emt 0:00:14]} 35. fxg3 {[%emt 0:00:30]} Rhf8 {[%emt 0:00:23] Against Rf1} 36.
Re2 {[%emt 0:00:46] Inhibits Rf2.} (36. Bf4 $17) 36... Rf3 $19 {[%emt 0:00:18]}
37. Bd2 {[%emt 0:00:36]} c3 {[%emt 0:00:18]} 38. Bh6 {[%emt 0:00:00]} (38. Bg5
{might work better.}) 38... Rc4 {[%emt 0:00:33][%csl Ya4,Yd4]} 39. Rbe1 {
[%emt 0:00:27]} Rxd4 {[%emt 0:01:27]} (39... Rxa4 $2 40. Rxe6 Rb4 41. Bc1 $19)
40. Rxe6 {[%emt 0:00:24][%cal Yh6f4]} Nb4+ $2 {[%emt 0:00:23]} (40... Rxa4 $19
{Threatens to win with ...Ra5.} 41. Bf4 Rf2+ 42. R6e2 Ra2+ 43. Kd1 Rxh2 44.
Rxh2 Rxh2) 41. Kb3 $15 {[%emt 0:03:35]} Nd5 {[%emt 0:17:01] Against Re7+} (
41... c2+ $15 42. R6e3 Rxe3+ 43. Bxe3 Re4) 42. R6e4 $11 {[%emt 0:04:55]} Rd2 {
[%emt 0:03:01]} 43. Kc4 $1 $14 {[%emt 0:02:02]} Rdd3 {[%emt 0:11:39]} (43...
Rxh2 $14 44. Kxd5 Rf5+ 45. Kc4 (45. Kd4 Rxh6 46. Re7+ Kd6 $11) 45... Rxh6) 44.
Rd4 {[%emt 0:05:10] The board is on fire.} (44. Re5 $16 Kd6 45. Bf8+ $1 Kc7 46.
R1e2 $1) 44... Rxd4+ {[%emt 0:00:07]} 45. Kxd4 {[%emt 0:00:04] Endgame KRB-KRN}
Kd6 {[%emt 0:01:38]} 46. Re5 {[%emt 0:08:59]} (46. Bc1 $5 {[%cal Rc1a3]} c2 47.
Re2 $14) 46... Nb4 {[%emt 0:00:46]} 47. Re2 {[%emt 0:06:49]} Nd5 {[%emt 0:01:
26]} (47... a5 $11) 48. Re5 $2 {[%emt 0:00:17]} (48. Bc1 $16 {And now Ba3+
would win.} Nc7 49. Ba3+ Kd7 50. Bb4 (50. Re7+ Kd8 $14)) 48... Nc7 {[%emt 0:00:
41]} (48... Nb4 $11) 49. Re3 $16 {[%emt 0:02:09]} Rf2 {[%emt 0:00:36]} (49...
Rxe3 $16 50. Bxe3 Nd5) 50. Bf4+ $18 {[%emt 0:01:00]} (50. Rxc3 Ne6+ 51. Kc4
Rxh2 52. Rd3+ Kc7 $14) 50... Kd7 {[%emt 0:00:13] [#]} 51. Bxc7 {[%emt 0:00:14]}
({Not} 51. Rxc3 Ne6+ 52. Ke3 Ra2 $16) (51. Rd3 $1 $18 {aiming for Ke3+.} Rf1
52. Ke4+ (52. Rxc3 Ne6+ 53. Ke5 Re1+ 54. Kf5 Nc5 $16) (52. Kxc3+ Ke7 $16) 52...
Ke7 53. Rxc3 (53. Bxc7 c2 $16)) 51... Kxc7 $16 {[%emt 0:00:12]} 52. Rxc3+ $18 {
[%emt 0:00:08] KR-KR} ({Of course not} 52. Kxc3 Rxh2 53. Re7+ Kb8 $11) 52...
Kd7 {[%emt 0:00:12]} 53. h4 {[%emt 0:00:09]} Ra2 {[%emt 0:00:10]} 54. Rc4 {
[%emt 0:00:17]} Rg2 {[%emt 0:00:00]} 55. Rc3 {[%emt 0:00:36]} Ra2 $1 {[%emt 0:
00:08]} 56. Rc4 {[%emt 0:00:48] Ke5 is the strong threat.} Rg2 $1 {[%emt 0:00:
04]} 57. Rc3 {[%emt 0:00:09]} Ra2 $1 {[%emt 0:00:10]} 58. Rc4 {[%emt 0:00:22]
Never resign too early! Weighted Error Value: White=0.33/Black=0.29 (precise)}
(58. Rc6 $16) 1/2-1/2

[Event "44th Chess Olympiad Women 2022"]
[Site "Chennai"]
[Date "2022.07.30"]
[Round "2.15"]
[White "Guerrero Rodriguez, Alejandra"]
[Black "Peycheva, Gergana"]
[Result "0-1"]
[WhiteElo "2006"]
[BlackElo "2295"]
[Annotator "TA"]
[PlyCount "52"]
[EventDate "2022.??.??"]
[TimeControl "60"]

{[%evp 14,52,0,0,7,-13,-18,0,15,-54,-37,-71,-56,-55,-58,-56,-46,-66,-58,-68,
-74,-58,-42,-45,-56,-118,0,0,0,0,0,0,0,0,52,69,71,14,54,0,14]} 1. e4 {[%emt 0:
00:00]} c6 {[%emt 0:00:22]} 2. d4 {[%emt 0:01:25]} d5 {[%emt 0:00:55]} 3. Nd2 {
[%emt 0:01:33]} dxe4 {[%emt 0:01:16]} 4. Nxe4 {[%emt 0:00:09]} Nf6 {[%emt 0:00:
00]} 5. Nxf6+ {[%emt 0:02:40]} exf6 {[%emt 0:01:19]} 6. Nf3 {[%emt 0:01:12]}
Bd6 {[%emt 0:03:13]} 7. Bd3 {[%emt 0:02:59] The main line 7.Bd3 scores better
than 7.Be2.} O-O {[%emt 0:01:39]} 8. Be3 {[%emt 0:06:27]} Re8 {[%emt 0:05:44]
B15: Caro-Kann: 3 Nc3:3...g6 and 3...dxe4 4 Nxe4 Nf6 5 Nxf6+ exf6.} 9. Qd2 {
[%emt 0:02:50]} Nd7 {[%emt 0:02:37]} 10. O-O-O {[%emt 0:01:43]} Nf8 {[%emt 0:
00:00]} 11. Bf4 {[%emt 0:05:58]} ({White should play} 11. d5 $11) 11... Be6 $15
{[%emt 0:07:42] [#]} 12. a3 $146 {[%emt 0:06:25]} ({Predecessor:} 12. Bxd6 Qxd6
13. c4 b5 14. Qc2 a5 15. Kb1 a4 16. Rhe1 Rab8 17. Ka1 bxc4 18. Bxc4 {0-1 (28)
Coelho,R (1981)-Trost,E (2184) Chess.com INT 2021}) 12... b5 {[%emt 0:05:26]}
13. Be4 {[%emt 0:07:57]} Bxf4 {[%emt 0:15:34]} 14. Qxf4 {[%emt 0:00:27]} Qb6 {
[%emt 0:01:56]} 15. Qd6 {[%emt 0:10:58]} Rac8 {[%emt 0:03:55]} 16. Rhe1 {
[%emt 0:02:56]} a5 {[%emt 0:05:23]} 17. Qc5 {[%emt 0:05:01]} Qa6 {[%emt 0:00:
00]} 18. Re3 {[%emt 0:02:43]} Red8 {[%emt 0:06:44]} 19. Rc3 {[%emt 0:05:33]} (
19. Nh4 $15) 19... Nd7 {[%emt 0:02:39]} ({Better is} 19... Bd5 $17 20. Bf5 Ne6
21. Bxe6 Bxe6) 20. Qe7 $11 {[%emt 0:00:50][%cal Yc3c6] [#] Rxc6! is the strong
threat.} (20. Qh5 f5 21. Bd3 (21. Bxf5 g6 $17) 21... Qb6 $17) 20... Nb8 {
[%emt 0:07:37]} 21. Nh4 $36 {[%emt 0:06:25] Black must now prevent Rg3. White
is pushing.} Rd7 {[%emt 0:04:31]} 22. Qc5 {[%emt 0:01:11]} b4 {[%emt 0:03:00]}
23. Rg3 {[%emt 0:02:24] Strongly threatening Qh5.} bxa3 {[%emt 0:01:23]} (23...
g6 $11) 24. Qxa3 $14 {[%emt 0:02:47] [#] aiming for Qf3.} ({Much weaker is} 24.
Rxa3 Qe2 25. Bf3 Qxf2 $11) 24... Qb5 {[%emt 0:01:34]} 25. Qd3 {[%emt 0:05:41]}
(25. Qf3 $16 {Hoping for Qxf6.} Kf8 26. Bf5 (26. Bxh7 Rcd8 $14)) 25... Qxd3 {
[%emt 0:01:15]} 26. Rdxd3 {[%emt 0:00:44]} (26. Rgxd3 $14 g6 27. g3) 26... g6 {
[%emt 0:00:36] Weighted Error Value: White=0.21 (precise) /Black=0.15 (very
precise) . Loss on time!?} 0-1

[Event "44th Chess Olympiad Women 2022"]
[Site "Chennai"]
[Date "2022.07.30"]
[Round "2.15"]
[White "Salimova, Nurgyul"]
[Black "Corrales Jimenez, Zenia"]
[Result "1-0"]
[WhiteElo "2416"]
[BlackElo "2143"]
[Annotator "TA"]
[PlyCount "35"]
[EventDate "2022.??.??"]
[TimeControl "60"]

{[%evp 9,35,-14,-15,-18,-11,-14,6,7,18,26,222,214,281,273,300,297,410,404,401,
380,1262,1261,1245,1184,29996,29994,29997,29998]} 1. d4 {[%emt 0:00:03]} d5 {
[%emt 0:00:17]} 2. Nc3 {[%emt 0:00:18]} Nf6 {[%emt 0:00:28]} 3. Bf4 {[%emt 0:
00:00]} c5 {[%emt 0:01:45]} 4. e4 {[%emt 0:00:19][%cal Ye2e4,Ye4e5]} e6 {
[%emt 0:15:05]} 5. dxc5 {[%emt 0:26:19]} Bxc5 {[%emt 0:10:34] White must now
prevent ...Qb6.} 6. e5 {[%emt 0:03:16] D00:1 d4 d5: Unusual lines.} Nfd7 {
[%emt 0:07:15]} 7. Qg4 {[%emt 0:09:45]} g6 {[%emt 0:07:21]} 8. Nf3 {[%emt 0:00:
00] The position is equal.} Nc6 {[%emt 0:06:31]} 9. Bd3 {[%emt 0:03:39] [#]} g5
$146 {[%emt 0:22:59]} (9... h5 $11 {and Black stays safe.} 10. Qg3 Be7) ({
Predecessor:} 9... Nb4 10. Bd2 Nxd3+ 11. cxd3 a6 12. Rc1 Qe7 13. d4 Ba7 14. Ne2
Nb6 15. b3 O-O {0-1 (43) Lipschuetz,S-Delmar,E New York (Manhattan CC) 1890})
10. Bxg5 $18 {[%emt 0:02:40]} Ndxe5 {[%emt 0:06:17]} 11. Nxe5 {[%emt 0:00:37]}
({Inferior is} 11. Bxd8 Nxg4 12. Bh4 O-O $15) 11... Nxe5 {[%emt 0:00:05]} 12.
Qa4+ {[%emt 0:01:20]} ({Worse is} 12. Bxd8 Nxg4 13. Bh4 O-O $11) 12... Qd7 {
[%emt 0:03:56]} 13. Bb5 {[%emt 0:00:37]} Nc6 {[%emt 0:00:06]} 14. O-O-O {
[%emt 0:00:53][%cal Yc3d5] Strongly threatening Nxd5!} a6 $2 {[%emt 0:04:00] 
[#]} (14... h6) 15. Nxd5 $1 {[%emt 0:02:16]} exd5 {[%emt 0:09:03]} 16. Rhe1+ {
[%emt 0:00:06]} Kf8 {[%emt 0:00:06]} 17. Bh6+ {[%emt 0:00:04]} Kg8 {[%emt 0:00:
04] [#]} 18. Qg4+ $3 {[%emt 0:00:09] Back Rank. White took control after the
opening. Weighted Error Value: White=0.00 (flawless) / Black=1.47} 1-0

[Event "44th Chess Olympiad Women 2022"]
[Site "Chennai"]
[Date "2022.07.30"]
[Round "2.16"]
[White "Khegay, Anjela"]
[Black "Karavade, Eesha"]
[Result "0-1"]
[WhiteElo "2131"]
[BlackElo "2339"]
[Annotator "TA"]
[PlyCount "68"]
[EventDate "2022.??.??"]
[TimeControl "60"]

{[%evp 11,68,0,0,0,0,0,0,-1,-4,-25,-22,-30,-25,-25,-24,-22,-22,-94,-88,-87,-83,
-84,-71,-114,-80,-108,-43,-56,-52,-64,-61,-69,-69,-152,-133,-150,-118,-106,-66,
-64,-61,-116,-106,-105,-68,-100,-49,-51,-17,-77,-81,-122,-135,-228,-220,-502,
-486,-454,-431]} 1. d4 {[%emt 0:00:03]} Nf6 {[%emt 0:00:41]} 2. c4 {[%emt 0:00:
00]} e6 {[%emt 0:00:07]} 3. g3 {[%emt 0:00:25]} d5 {[%emt 0:01:43]} 4. Bg2 {
[%emt 0:00:26]} dxc4 {[%emt 0:01:00]} 5. Nf3 {[%emt 0:00:14]} Nc6 {[%emt 0:00:
00]} 6. O-O {[%emt 0:00:55]} Rb8 {[%emt 0:01:00]} 7. b3 {[%emt 0:06:36] E04:
Open Catalan: 5 Nf3.} cxb3 {[%emt 0:01:18]} 8. axb3 {[%emt 0:00:02]} a6 {
[%emt 0:05:24]} 9. Bb2 {[%emt 0:03:29] The position is equal.} Be7 {[%emt 0:00:
00]} 10. Nc3 {[%emt 0:04:21]} O-O {[%emt 0:04:08]} 11. e4 {[%emt 0:01:24] [#]}
b6 $146 {[%emt 0:03:27]} ({Predecessor:} 11... Nb4 12. Qe2 b5 13. Rfd1 Bb7 14.
Ne5 c5 15. d5 exd5 16. exd5 Qc7 17. Ng4 Nxg4 18. Qxg4 {1-0 (24) Gallego
Alcaraz,A (2499)-Stevens,C (2260) Chess.com INT 2022}) 12. Qe2 {[%emt 0:03:53]}
Bb7 {[%emt 0:10:05]} (12... Nxd4 $2 13. Nxd4 Qd7 14. Rfd1 $18) 13. Rfd1 {
[%emt 0:01:26]} Re8 {[%emt 0:00:02]} 14. e5 {[%emt 0:11:48]} (14. h4 $11 {
remains equal.}) 14... Nd5 $17 {[%emt 0:01:48]} 15. Ne4 {[%emt 0:00:14]} Na5 {
[%emt 0:18:47]} 16. Nfd2 {[%emt 0:00:58]} Bb4 {[%emt 0:03:19]} 17. f4 {[%emt 0:
00:00]} h6 {[%emt 0:04:54]} 18. Rf1 {[%emt 0:02:25]} Ne7 {[%emt 0:07:16]} ({
Better is} 18... Qd7 $17 {White must now prevent ...Qb5.} 19. Qd3 Bxd2 20. Nxd2
Red8) 19. g4 $1 $15 {[%emt 0:08:27]} Bxd2 {[%emt 0:00:52]} 20. Nxd2 {[%emt 0:
00:00]} Bxg2 {[%emt 0:02:43]} 21. Qxg2 {[%emt 0:00:02]} Qd5 {[%emt 0:07:37]}
22. f5 {[%emt 0:00:21]} (22. Ne4 $1 $15) 22... Qxg2+ $17 {[%emt 0:00:07]} 23.
Kxg2 {[%emt 0:00:01]} Nd5 {[%emt 0:00:40] [#] aiming for ...Ne3+.} 24. Rf3 {
[%emt 0:01:06] Against Ne3+} Rbc8 {[%emt 0:03:39]} 25. Ne4 {[%emt 0:03:33]} Nc6
{[%emt 0:06:00] Pair of Knights!} 26. fxe6 {[%emt 0:06:31]} (26. f6 $15) 26...
fxe6 {[%emt 0:01:34]} 27. Rc1 {[%emt 0:01:15]} Nce7 {[%emt 0:02:13]} 28. Ba3 {
[%emt 0:01:03]} Ng6 {[%emt 0:00:20]} (28... Red8 $17) 29. Kg3 $1 $15 {[%emt 0:
00:00]} Ra8 {[%emt 0:00:51][%cal Yc7c5]} 30. Rc6 {[%emt 0:01:01] Against c5} (
30. h4 $11 {keeps the balance.}) 30... a5 $17 {[%emt 0:01:06]} 31. h4 {[%emt 0:
00:00]} a4 {[%emt 0:01:51]} 32. bxa4 {[%emt 0:06:29]} (32. h5 $17 {is a better
defense.} Nge7 33. Rc2 (33. Rxe6 $2 axb3 34. Bxe7 Nxe7 $17)) 32... Rxa4 $19 {
[%emt 0:00:49]} 33. Nd6 $2 {[%emt 0:06:08] [#]} (33. Nc3 Rxd4 34. Nxd5 Nxe5 35.
Nxc7) 33... cxd6 {[%emt 0:01:39]} 34. exd6 {[%emt 0:00:02]} Nf8 {[%emt 0:01:04]
Weighted Error Value: White=0.36/Black=0.11 (very precise)} 0-1

[Event "44th Chess Olympiad Women 2022"]
[Site "Chennai"]
[Date "2022.07.30"]
[Round "2.16"]
[White "Vishwa Vasnawala"]
[Black "Fang, Kun"]
[Result "1/2-1/2"]
[WhiteElo "2305"]
[BlackElo "1766"]
[Annotator "TA"]
[PlyCount "64"]
[EventDate "2022.??.??"]
[TimeControl "60"]

{[%evp 18,64,20,16,29,23,25,31,27,21,29,16,56,47,50,43,69,46,75,69,74,22,79,69,
61,62,65,69,74,73,77,26,58,54,62,57,60,54,59,31,51,45,49,50,56,35,68,22,62]} 1.
d4 {[%emt 0:00:04]} d5 {[%emt 0:00:04]} 2. c4 {[%emt 0:00:06]} c6 {[%emt 0:00:
00]} 3. Nf3 {[%emt 0:00:09]} Nf6 {[%emt 0:00:06]} 4. e3 {[%emt 0:00:06]} e6 {
[%emt 0:04:24]} 5. b3 {[%emt 0:00:16]} b6 {[%emt 0:03:54]} 6. Bb2 {[%emt 0:00:
00]} Bb7 {[%emt 0:01:50]} 7. Bd3 {[%emt 0:00:58]} Bd6 {[%emt 0:03:49]} 8. Nc3 {
[%emt 0:01:20]} Nbd7 {[%emt 0:01:44]} 9. O-O {[%emt 0:00:24]} O-O {[%emt 0:00:
00]} 10. Qc2 {[%emt 0:05:02]} Rc8 {[%emt 0:04:29] D45: Semi-Slav: 5 e3.} 11. e4
{[%emt 0:00:00]} dxe4 {[%emt 0:00:08]} 12. Nxe4 {[%emt 0:00:00]} Nxe4 {[%emt 0:
00:00] White is slightly better.} 13. Bxe4 {[%emt 0:00:00]} Nf6 {[%emt 0:00:18]
} 14. Bd3 {[%emt 0:00:00]} Bb8 {[%emt 0:04:21]} 15. c5 {[%emt 0:20:32]} h6 {
[%emt 0:01:40]} 16. Rfe1 {[%emt 0:06:46] [#]} Qe7 $146 {[%emt 0:07:11]} ({
Predecessor:} 16... b5 17. a3 Nd5 18. Ne5 Bxe5 19. dxe5 Rc7 20. Re4 Bc8 21. Rd4
Qe7 22. b4 f5 23. exf6 Nxf6 {1-0 (31) Mislin,R-Augustyniak,E freechess.de 2017}
) 17. a3 {[%emt 0:02:24]} Rcd8 {[%emt 0:08:40]} 18. b4 {[%emt 0:08:15]} Nd5 {
[%emt 0:01:50]} 19. Rad1 {[%emt 0:01:58]} (19. Bc1 $16) 19... Qc7 {[%emt 0:00:
00]} (19... Bc7 $11 {remains equal.}) 20. g3 {[%emt 0:02:59]} Qc8 {[%emt 0:00:
00]} 21. Qe2 {[%emt 0:03:26]} Rde8 {[%emt 0:01:49]} 22. Ne5 {[%emt 0:07:42]} f5
{[%emt 0:01:51]} 23. Rc1 {[%emt 0:13:56] White is more active.} Bxe5 {[%emt 0:
00:00]} 24. dxe5 {[%emt 0:01:05]} (24. Qxe5 $16 b5 25. Be2) 24... b5 {[%emt 0:
00:00]} 25. Bc3 {[%emt 0:01:37][%cal Yb2c3,Yc3d2,Yd2c1]} Qc7 {[%emt 0:00:00]}
26. Bd2 {[%emt 0:01:11]} Rd8 {[%emt 0:00:30]} 27. Bb1 {[%emt 0:01:03]} Qe7 {
[%emt 0:03:30]} 28. Rcd1 {[%emt 0:04:16]} Rd7 {[%emt 0:03:41]} 29. Qf3 {
[%emt 0:01:46]} Bc8 {[%emt 0:02:36]} 30. Ba2 {[%emt 0:03:03]} Rdd8 {[%emt 0:00:
00]} 31. Bc1 {[%emt 0:01:24]} a5 {[%emt 0:05:44]} 32. Rd4 {[%emt 0:02:24]} (32.
bxa5 $14 Qxc5 33. Bxd5 Rxd5 34. Rxd5 cxd5 35. Bd2) 32... Kh8 {[%emt 0:04:34]
Weighted Error Value: White=0.11 (very precise) /Black=0.14 (very precise)}
1/2-1/2

[Event "44th Chess Olympiad Women 2022"]
[Site "Chennai"]
[Date "2022.07.30"]
[Round "2.17"]
[White "Demchenko, Svitlana"]
[Black "Peng, Zhaoqin"]
[Result "1-0"]
[WhiteElo "2122"]
[BlackElo "2349"]
[Annotator "TA"]
[PlyCount "87"]
[EventDate "2022.??.??"]
[TimeControl "60"]

{[%evp 10,87,2,0,12,-4,-3,-6,0,0,0,0,0,9,27,23,37,25,33,28,68,75,68,74,118,10,
104,125,140,70,137,147,242,249,267,279,261,82,92,89,82,81,190,183,148,0,0,0,0,
0,0,0,0,0,41,-702,0,0,57,59,94,96,104,93,120,118,137,119,167,158,718,730,29974,
29969,29983,1147,727,727,29991,29992]} 1. d4 {[%emt 0:00:04]} d5 {[%emt 0:00:
00]} 2. Nf3 {[%emt 0:00:09]} Nf6 {[%emt 0:00:14]} 3. Bf4 {[%emt 0:00:15]} e6 {
[%emt 0:00:18]} 4. e3 {[%emt 0:00:16]} Bd6 {[%emt 0:00:55]} 5. Bg3 {[%emt 0:00:
00]} O-O {[%emt 0:00:34]} 6. Nbd2 {[%emt 0:00:13]} c5 {[%emt 0:02:00] D02:1 d4
d5 2 Nf3 sidelines, including 2...Nf6 3 g3 and 2...Nf6 3 Bf4.} 7. c3 {[%emt 0:
00:25]} Qc7 {[%emt 0:04:58]} 8. dxc5 {[%emt 0:00:21]} Bxg3 {[%emt 0:00:00] The
position is equal.} 9. hxg3 {[%emt 0:00:08][%cal Yh2g3,Yg3g4,Yg4g5,Yg5h6]} Qxc5
{[%emt 0:00:03]} 10. Bd3 {[%emt 0:00:15]} h6 {[%emt 0:00:00]} 11. Qa4 {[%emt 0:
01:48]} Nc6 {[%emt 0:28:59]} 12. g4 $1 {[%emt 0:01:59] Hoping for g5.} e5 {
[%emt 0:05:29]} 13. g5 {[%emt 0:00:43]} Ng4 {[%emt 0:00:23]} 14. gxh6 {[%emt 0:
01:21] [#]} g6 $146 {[%emt 0:02:03]} ({Predecessor:} 14... Nxh6 15. Rh5 f5 16.
Bb5 Ng4 17. Nb3 Qd6 18. O-O-O e4 19. Rxd5 Qg6 20. Bc4 Be6 {½-½ (30)
Malassagne,R (2305)-Haack,K (2180) Prague 2020}) 15. Be2 {[%emt 0:00:00]} a6 {
[%emt 0:08:32]} 16. Ng5 {[%emt 0:21:13]} b5 {[%emt 0:11:57] [#]} 17. Qd1 {
[%emt 0:04:08]} (17. Qb3 $1 $16) 17... Nf6 {[%emt 0:06:39]} (17... Qe7 $11 {
keeps the balance.} 18. Bxg4 Qxg5 19. h7+ Kh8) 18. e4 $16 {[%emt 0:06:07][%cal
Ye3e4,Ye4d5,Yd5c6]} Qe7 {[%emt 0:03:38]} 19. a4 {[%emt 0:16:55]} ({White
should play} 19. exd5 $16 Nxd5 20. Bf3) 19... b4 {[%emt 0:03:12]} (19... Bb7 $1
$14) 20. exd5 {[%emt 0:01:28]} bxc3 {[%emt 0:02:25]} (20... Nxd5 $16 21. Nde4
Nf6) 21. dxc6 $18 {[%emt 0:05:13]} cxd2+ {[%emt 0:00:06]} 22. Qxd2 {[%emt 0:00:
25]} Bf5 {[%emt 0:01:12]} 23. Bc4 $2 {[%emt 0:12:26]} (23. Rc1 $18 {and White
stays clearly on top.}) 23... Ne4 $16 {[%emt 0:03:25]} 24. Nxe4 {[%emt 0:03:26]
} Bxe4 {[%emt 0:00:27]} 25. Rc1 {[%emt 0:00:26][%cal Yc6c7] And now c7! would
win.} Bxg2 {[%emt 0:03:56]} (25... Kh7 $16 {was worth a try.}) 26. Rg1 $18 {
[%emt 0:00:46]} Be4 {[%emt 0:00:01]} 27. b4 {[%emt 0:04:01] White is more
active.} (27. Rg4 $16 Rfd8 28. Qg5 Qxg5 29. Rxg5) 27... Kh7 $11 {[%emt 0:01:33]
} 28. b5 {[%emt 0:01:47]} axb5 {[%emt 0:01:07]} 29. axb5 {[%emt 0:02:33][%cal
Yc6c7]} Rfd8 {[%emt 0:03:00]} 30. Qb2 {[%emt 0:00:29]} Rd4 {[%emt 0:01:07]
aiming for ...Bf3.} 31. Be2 $36 {[%emt 0:04:01] Prevents Bf3. White has good
play.} Bd5 {[%emt 0:02:46] White must now prevent ...Ra2.} 32. b6 $2 {[%emt 0:
03:52]} (32. c7 $14 Bb7 33. Rg4) 32... Rb4 $2 {[%emt 0:00:37]} ({Better is} 
32... Ra2 $19 33. Qc3 Ra3) 33. Qd2 {[%emt 0:00:30]} Bxc6 {[%emt 0:01:05]} 34.
Rxc6 $14 {[%emt 0:00:56][%cal Yg1g6] Rgxg6! is the strong threat. Chess con
chili.} Rb1+ {[%emt 0:00:25] [#]} 35. Rc1 $1 {[%emt 0:01:12]} Rxb6 {[%emt 0:00:
01]} 36. Kf1 {[%emt 0:02:00]} Rab8 {[%emt 0:01:42]} 37. Rg3 {[%emt 0:01:02]}
Rb2 {[%emt 0:00:35]} 38. Qe3 {[%emt 0:00:00]} R2b4 {[%emt 0:00:46]} (38... R8b4
$16 39. Qc3 Rb1) 39. Rc5 {[%emt 0:00:00]} f6 $2 {[%emt 0:00:40]} (39... Rb3 $16
40. Qxe5 Qxe5 41. Rxe5 Rxg3 42. fxg3 Kxh6) 40. Qc3 $18 {[%emt 0:00:50]
Threatening mate with Rc7.} R8b7 {[%emt 0:00:00] [#] Inhibits Rc7.} 41. Bh5 $1
{[%emt 0:04:27]} g5 {[%emt 0:13:29]} (41... Qf7 42. Bxg6+) 42. Qd3+ {[%emt 0:
06:02]} (42. Qc2+ $142 e4 43. Bg4 Rb1+ 44. Kg2 Rd1 45. Bf5+ Kh8 46. Qxd1 Rb8
47. Rgc3) 42... e4 {[%emt 0:00:23]} 43. Qd5 {[%emt 0:00:08]} Kxh6 {[%emt 0:08:
49] [#]} 44. Qf5 $1 {[%emt 0:06:22] Both players deserved the win here.
Weighted Error Value: White=0.33/Black=0.66} 1-0